[Event "*** Titled Tuesday Blitz"]
[Site "Chess.com"]
[Date "2020.12.01"]
[Round "10"]
[White "KonstantinB_1983"]
[Black "hleol"]
[Result "0-1"]
[WhiteElo "2471"]
[BlackElo "2338"]
[TimeControl "180+1"]
[EndTime "11:54:14 PST"]
[Termination "hleol won by resignation"]

1. d4 {[%clk 0:02:57.4]} 1... d5 {[%clk 0:02:59.4]} 2. c4 {[%clk 0:02:55.6]}
2... c6 {[%clk 0:02:59.5]} 3. e3 {[%clk 0:02:51.7]} 3... Nf6 {[%clk 0:02:59.3]}
4. Nc3 {[%clk 0:02:51.2]} 4... e6 {[%clk 0:02:59.2]} 5. Nf3 {[%clk 0:02:50.1]}
5... Nbd7 {[%clk 0:02:59]} 6. Bd3 {[%clk 0:02:49.6]} 6... dxc4 {[%clk
0:02:59.2]} 7. Bxc4 {[%clk 0:02:50.5]} 7... b5 {[%clk 0:02:59.9]} 8. Bd3 {[%clk
0:02:50.9]} 8... Bd6 {[%clk 0:02:59.2]} 9. O-O {[%clk 0:02:47.9]} 9... Bb7
{[%clk 0:02:59.3]} 10. e4 {[%clk 0:02:46.5]} 10... e5 {[%clk 0:02:59.4]} 11.
dxe5 {[%clk 0:02:45.7]} 11... Nxe5 {[%clk 0:03:00.3]} 12. Nxe5 {[%clk
0:02:45.6]} 12... Bxe5 {[%clk 0:03:01.2]} 13. Qe2 {[%clk 0:02:44.1]} 13... O-O
{[%clk 0:02:59.4]} 14. f4 {[%clk 0:02:40.6]} 14... Bd4+ {[%clk 0:02:59.2]} 15.
Kh1 {[%clk 0:02:34.1]} 15... h5 {[%clk 0:02:35.5]} 16. e5 {[%clk 0:02:31.5]}
16... Ng4 {[%clk 0:02:23.6]} 17. Qe4 {[%clk 0:01:32.8]} 17... g6 {[%clk
0:02:22.2]} 18. h3 {[%clk 0:01:29.8]} 18... Qh4 {[%clk 0:02:20.6]} 19. Qxd4
{[%clk 0:01:01.1]} 19... c5 {[%clk 0:02:18.5]} 20. Qe4 {[%clk 0:00:50.5]} 20...
Bxe4 {[%clk 0:02:16.3]} 21. Nxe4 {[%clk 0:00:48.9]} 21... Rfd8 {[%clk
0:02:13.1]} 22. Bxb5 {[%clk 0:00:48]} 22... Nxe5 {[%clk 0:02:07.7]} 23. Be3
{[%clk 0:00:36.6]} 23... Nd3 {[%clk 0:01:59.1]} 24. Ng5 {[%clk 0:00:26.8]} 24...
Qg3 {[%clk 0:01:52.2]} 25. Bc4 {[%clk 0:00:24.3]} 25... Qxe3 {[%clk 0:01:40.2]}
26. Nxf7 {[%clk 0:00:18.7]} 26... Kg7 {[%clk 0:01:40]} 27. Rf3 {[%clk
0:00:15.7]} 27... Nf2+ {[%clk 0:01:36.3]} 28. Kh2 {[%clk 0:00:14.6]} 28... Qd4
{[%clk 0:01:31.6]} 29. Ne5 {[%clk 0:00:14.3]} 29... Ne4 {[%clk 0:01:28.6]} 30.
Re1 {[%clk 0:00:13]} 30... Nf6 {[%clk 0:01:23.2]} 31. Rg3 {[%clk 0:00:12.2]}
31... Qxf4 {[%clk 0:01:18]} 32. Nxg6 {[%clk 0:00:11.8]} 32... Qxg3+ {[%clk
0:01:17.6]} 33. Kxg3 {[%clk 0:00:11]} 33... Kxg6 {[%clk 0:01:18.4]} 34. Re5
{[%clk 0:00:11.2]} 34... Rd4 {[%clk 0:01:15.6]} 35. b3 {[%clk 0:00:10.7]} 35...
h4+ {[%clk 0:01:15]} 36. Kh2 {[%clk 0:00:10.8]} 36... Rad8 {[%clk 0:01:14.7]}
37. Re6 {[%clk 0:00:10.8]} 37... Rd2 {[%clk 0:01:13.6]} 38. Re5 {[%clk
0:00:09.4]} 38... Rxa2 {[%clk 0:01:11.4]} 39. Be2 {[%clk 0:00:09.5]} 39... Rdd2
{[%clk 0:01:10.3]} 40. Bf3 {[%clk 0:00:10.4]} 40... Rf2 {[%clk 0:01:09.6]} 41.
Rxc5 {[%clk 0:00:11.3]} 41... Rxf3 {[%clk 0:01:09.6]} 42. Kg1 {[%clk 0:00:11.6]}
42... Rg3 {[%clk 0:01:09]} 43. Rc1 {[%clk 0:00:12.4]} 43... Rgxg2+ {[%clk
0:01:09.1]} 0-1

[Event "*** Titled Tuesday Blitz"]
[Site "Chess.com"]
[Date "2020.12.01"]
[Round "10"]
[White "DanilNajdin"]
[Black "juancruzarias"]
[Result "0-1"]
[WhiteElo "2383"]
[BlackElo "2514"]
[TimeControl "180+1"]
[EndTime "11:54:17 PST"]
[Termination "juancruzarias won on time"]

1. e4 {[%clk 0:03:00.9]} 1... e6 {[%clk 0:02:57.8]} 2. d4 {[%clk 0:03:00]} 2...
d5 {[%clk 0:02:58]} 3. Nd2 {[%clk 0:02:59.7]} 3... Be7 {[%clk 0:02:57.6]} 4. Bd3
{[%clk 0:02:57.4]} 4... c5 {[%clk 0:02:57]} 5. exd5 {[%clk 0:02:48.7]} 5... Qxd5
{[%clk 0:02:57.9]} 6. dxc5 {[%clk 0:02:34.4]} 6... Nf6 {[%clk 0:02:34.1]} 7.
Ngf3 {[%clk 0:02:31.8]} 7... Nbd7 {[%clk 0:02:33.8]} 8. b4 {[%clk 0:02:22.8]}
8... a5 {[%clk 0:02:33.8]} 9. bxa5 {[%clk 0:02:10]} 9... Nxc5 {[%clk 0:02:33.1]}
10. Bc4 {[%clk 0:02:04.6]} 10... Qh5 {[%clk 0:02:24.7]} 11. O-O {[%clk
0:02:01.5]} 11... O-O {[%clk 0:02:24.6]} 12. Ba3 {[%clk 0:01:49.5]} 12... Rxa5
{[%clk 0:02:17.9]} 13. Bb4 {[%clk 0:01:48.7]} 13... Ra8 {[%clk 0:02:17.4]} 14.
Nb3 {[%clk 0:01:37.9]} 14... b6 {[%clk 0:02:14.8]} 15. Nxc5 {[%clk 0:01:19.5]}
15... Bxc5 {[%clk 0:02:13.4]} 16. Bxc5 {[%clk 0:01:00.4]} 16... Qxc5 {[%clk
0:02:14.3]} 17. Qd4 {[%clk 0:01:00.7]} 17... Qxd4 {[%clk 0:02:03.1]} 18. Nxd4
{[%clk 0:01:01.6]} 18... Ra4 {[%clk 0:02:02.5]} 19. Nxe6 {[%clk 0:00:45.3]}
19... Bxe6 {[%clk 0:01:58.2]} 20. Bxe6 {[%clk 0:00:42.8]} 20... fxe6 {[%clk
0:01:59.1]} 21. Rfb1 {[%clk 0:00:39]} 21... Nd5 {[%clk 0:01:58.3]} 22. Rb3
{[%clk 0:00:37.1]} 22... Rfa8 {[%clk 0:01:57.4]} 23. a3 {[%clk 0:00:36.9]} 23...
Rc8 {[%clk 0:01:56.7]} 24. Ra2 {[%clk 0:00:34.8]} 24... Rac4 {[%clk 0:01:56.2]}
25. Rbb2 {[%clk 0:00:30.1]} 25... Rd4 {[%clk 0:01:55.9]} 26. g3 {[%clk
0:00:27.8]} 26... Rd2 {[%clk 0:01:56.3]} 27. Kg2 {[%clk 0:00:28.1]} 27... Ne3+
{[%clk 0:01:49.7]} 28. Kf3 {[%clk 0:00:28]} 28... Rcxc2 {[%clk 0:01:49.8]} 29.
Rxc2 {[%clk 0:00:17.1]} 29... Rxc2 {[%clk 0:01:50.7]} 30. Ra1 {[%clk 0:00:15.9]}
30... Nd5 {[%clk 0:01:49.6]} 31. a4 {[%clk 0:00:14.5]} 31... Kf7 {[%clk
0:01:49.6]} 32. a5 {[%clk 0:00:14.7]} 32... bxa5 {[%clk 0:01:49.1]} 33. Rxa5
{[%clk 0:00:15.6]} 33... Kf6 {[%clk 0:01:48.8]} 34. h4 {[%clk 0:00:16]} 34... h5
{[%clk 0:01:48.4]} 35. Ra7 {[%clk 0:00:15.6]} 35... g6 {[%clk 0:01:48.8]} 36.
Rb7 {[%clk 0:00:15.3]} 36... Rc3+ {[%clk 0:01:48.7]} 37. Kg2 {[%clk 0:00:15]}
37... Kf5 {[%clk 0:01:43.5]} 38. Ra7 {[%clk 0:00:15.4]} 38... Nf6 {[%clk
0:01:43.5]} 39. Ra5+ {[%clk 0:00:14.4]} 39... e5 {[%clk 0:01:43.8]} 40. Ra8
{[%clk 0:00:11.9]} 40... Ng4 {[%clk 0:01:43]} 41. Rf8+ {[%clk 0:00:11.8]} 41...
Ke6 {[%clk 0:01:43.6]} 42. f3 {[%clk 0:00:10.5]} 42... Rc2+ {[%clk 0:01:43.6]}
43. Kg1 {[%clk 0:00:08.9]} 43... Ne3 {[%clk 0:01:42.6]} 44. Kh1 {[%clk
0:00:08.8]} 44... Rf2 {[%clk 0:01:35.2]} 45. f4 {[%clk 0:00:06.7]} 45... exf4
{[%clk 0:01:34.7]} 46. gxf4 {[%clk 0:00:07.2]} 46... Nf5 {[%clk 0:01:34.9]} 47.
Rg8 {[%clk 0:00:04.9]} 47... Nxh4 {[%clk 0:01:34.1]} 48. Kg1 {[%clk 0:00:03.5]}
48... Rg2+ {[%clk 0:01:32.8]} 49. Kh1 {[%clk 0:00:03.1]} 49... Kf5 {[%clk
0:01:32.6]} 50. Rf8+ {[%clk 0:00:02]} 50... Kg4 {[%clk 0:01:32]} 0-1

[Event "*** Titled Tuesday Blitz"]
[Site "Chess.com"]
[Date "2020.12.01"]
[Round "10"]
[White "rasmussvane"]
[Black "Hikaru"]
[Result "0-1"]
[WhiteElo "2898"]
[BlackElo "3188"]
[TimeControl "180+1"]
[EndTime "11:54:18 PST"]
[Termination "Hikaru won by resignation"]

1. Nf3 {[%clk 0:03:00.9]} 1... g6 {[%clk 0:02:56.8]} 2. e4 {[%clk 0:03:00.7]}
2... c5 {[%clk 0:02:52.6]} 3. d4 {[%clk 0:03:00]} 3... Bg7 {[%clk 0:02:52]} 4.
c4 {[%clk 0:02:59.3]} 4... Qa5+ {[%clk 0:02:35.9]} 5. Nc3 {[%clk 0:02:53.1]}
5... Nc6 {[%clk 0:02:17.3]} 6. d5 {[%clk 0:02:28.5]} 6... Nd4 {[%clk 0:02:06.1]}
7. Bd2 {[%clk 0:02:28.7]} 7... d6 {[%clk 0:02:04.2]} 8. Nxd4 {[%clk 0:02:00.2]}
8... cxd4 {[%clk 0:02:03.3]} 9. Nb5 {[%clk 0:02:00.8]} 9... Qb6 {[%clk
0:02:02.8]} 10. Qa4 {[%clk 0:01:54]} 10... Bd7 {[%clk 0:02:03]} 11. Ba5 {[%clk
0:01:54]} 11... Qc5 {[%clk 0:02:01.8]} 12. Qb3 {[%clk 0:01:33.1]} 12... Bxb5
{[%clk 0:01:54.4]} 13. cxb5 {[%clk 0:01:34]} 13... Nf6 {[%clk 0:01:53.8]} 14.
Bd3 {[%clk 0:01:32.8]} 14... O-O {[%clk 0:01:49]} 15. O-O {[%clk 0:01:32.7]}
15... Rac8 {[%clk 0:01:48]} 16. Bd2 {[%clk 0:01:26]} 16... Nd7 {[%clk
0:01:42.2]} 17. a4 {[%clk 0:01:17.8]} 17... Qc7 {[%clk 0:01:37.4]} 18. Rfc1
{[%clk 0:01:13.2]} 18... Nc5 {[%clk 0:01:36.8]} 19. Qd1 {[%clk 0:01:07.9]} 19...
Qd7 {[%clk 0:01:34.9]} 20. Bf4 {[%clk 0:00:59.9]} 20... f5 {[%clk 0:01:22.2]}
21. exf5 {[%clk 0:00:56.1]} 21... Nxd3 {[%clk 0:01:21.1]} 22. Qxd3 {[%clk
0:00:57]} 22... Rxc1+ {[%clk 0:01:19.1]} 23. Rxc1 {[%clk 0:00:57.9]} 23... Qxf5
{[%clk 0:01:19.2]} 24. Qxf5 {[%clk 0:00:53.2]} 24... Rxf5 {[%clk 0:01:20.1]} 25.
Bd2 {[%clk 0:00:52]} 25... Rxd5 {[%clk 0:01:18.1]} 26. Rc7 {[%clk 0:00:52]}
26... Rc5 {[%clk 0:01:15.6]} 27. Rxe7 {[%clk 0:00:33.6]} 27... Rc2 {[%clk
0:01:14.5]} 28. Bf4 {[%clk 0:00:24.3]} 28... d3 {[%clk 0:01:07.1]} 29. g3 {[%clk
0:00:22.1]} 29... d2 {[%clk 0:01:02.3]} 30. Bxd2 {[%clk 0:00:17.4]} 30... Rxd2
{[%clk 0:01:03.2]} 31. Rxb7 {[%clk 0:00:17.2]} 31... Bd4 {[%clk 0:01:00.9]} 32.
a5 {[%clk 0:00:17.6]} 32... Rxf2 {[%clk 0:00:57.8]} 33. Kh1 {[%clk 0:00:16.5]}
33... Rxb2 {[%clk 0:00:57.7]} 34. b6 {[%clk 0:00:15.9]} 34... axb6 {[%clk
0:00:49.4]} 35. a6 {[%clk 0:00:16.2]} 35... b5 {[%clk 0:00:50.1]} 36. a7 {[%clk
0:00:16.6]} 36... Bxa7 {[%clk 0:00:50.1]} 37. Rxa7 {[%clk 0:00:17.5]} 37... b4
{[%clk 0:00:50.8]} 38. Rd7 {[%clk 0:00:15.9]} 38... b3 {[%clk 0:00:50.6]} 39.
Rb7 {[%clk 0:00:12.2]} 39... d5 {[%clk 0:00:49.9]} 40. h4 {[%clk 0:00:11.2]}
40... d4 {[%clk 0:00:50.1]} 41. Kg1 {[%clk 0:00:11.7]} 41... d3 {[%clk
0:00:50.3]} 42. Kf1 {[%clk 0:00:11.7]} 42... Rb1+ {[%clk 0:00:50.6]} 0-1

[Event "*** Titled Tuesday Blitz"]
[Site "Chess.com"]
[Date "2020.12.01"]
[Round "10"]
[White "AldokhinIvan"]
[Black "xamax2000"]
[Result "0-1"]
[WhiteElo "2507"]
[BlackElo "2661"]
[TimeControl "180+1"]
[EndTime "11:54:18 PST"]
[Termination "xamax2000 won by resignation"]

1. e4 {[%clk 0:03:00.5]} 1... c6 {[%clk 0:02:48.8]} 2. Nc3 {[%clk 0:02:57.7]}
2... d5 {[%clk 0:02:48.2]} 3. d4 {[%clk 0:02:58.6]} 3... dxe4 {[%clk 0:02:47.7]}
4. Nxe4 {[%clk 0:02:59.1]} 4... Nf6 {[%clk 0:02:48.2]} 5. Nxf6+ {[%clk
0:02:59.4]} 5... exf6 {[%clk 0:02:49.1]} 6. c3 {[%clk 0:03:00]} 6... Bd6 {[%clk
0:02:48.3]} 7. Bd3 {[%clk 0:03:00.6]} 7... O-O {[%clk 0:02:47.5]} 8. Ne2 {[%clk
0:03:01.1]} 8... Re8 {[%clk 0:02:46.8]} 9. Qc2 {[%clk 0:03:01.7]} 9... h5 {[%clk
0:02:46.5]} 10. O-O {[%clk 0:03:01.8]} 10... h4 {[%clk 0:02:45.9]} 11. h3 {[%clk
0:02:59.4]} 11... Nd7 {[%clk 0:02:41.5]} 12. Bd2 {[%clk 0:02:09.4]} 12... Nf8
{[%clk 0:02:40]} 13. Rae1 {[%clk 0:02:09.5]} 13... Bc7 {[%clk 0:02:35.3]} 14.
Nf4 {[%clk 0:01:46.3]} 14... Ne6 {[%clk 0:02:28.4]} 15. Bh7+ {[%clk 0:01:24.2]}
15... Kf8 {[%clk 0:02:01.8]} 16. Nxe6+ {[%clk 0:01:15.1]} 16... Bxe6 {[%clk
0:02:00.5]} 17. Re4 {[%clk 0:01:10.7]} 17... f5 {[%clk 0:01:51]} 18. Bxf5 {[%clk
0:00:59.2]} 18... Bxf5 {[%clk 0:00:48]} 19. Rxe8+ {[%clk 0:00:57.2]} 19... Qxe8
{[%clk 0:00:48.9]} 20. Qxf5 {[%clk 0:00:57]} 20... Qe2 {[%clk 0:00:49.8]} 21.
Bg5 {[%clk 0:00:35.1]} 21... Kg8 {[%clk 0:00:17.9]} 22. Rb1 {[%clk 0:00:18.6]}
22... Re8 {[%clk 0:00:17.5]} 23. Bxh4 {[%clk 0:00:18]} 23... Qe1+ {[%clk
0:00:17.2]} 0-1

[Event "*** Titled Tuesday Blitz"]
[Site "Chess.com"]
[Date "2020.12.01"]
[Round "10"]
[White "Orest_Vovk"]
[Black "PaulfromSPb"]
[Result "1-0"]
[WhiteElo "2581"]
[BlackElo "2681"]
[TimeControl "180+1"]
[EndTime "11:54:19 PST"]
[Termination "Orest_Vovk won by resignation"]

1. g4 {[%clk 0:03:00.9]} 1... d5 {[%clk 0:02:57.8]} 2. h3 {[%clk 0:03:00.8]}
2... e5 {[%clk 0:02:56.1]} 3. Bg2 {[%clk 0:03:01.2]} 3... c6 {[%clk 0:02:54.9]}
4. d4 {[%clk 0:03:01]} 4... Bd6 {[%clk 0:02:50.9]} 5. c4 {[%clk 0:03:00.8]} 5...
dxc4 {[%clk 0:02:49.4]} 6. Nf3 {[%clk 0:02:59.4]} 6... Nd7 {[%clk 0:02:47.3]} 7.
dxe5 {[%clk 0:02:58.8]} 7... Nxe5 {[%clk 0:02:46.6]} 8. Nxe5 {[%clk 0:02:59]}
8... Bxe5 {[%clk 0:02:42.1]} 9. Qxd8+ {[%clk 0:02:58.7]} 9... Kxd8 {[%clk
0:02:41.9]} 10. O-O {[%clk 0:02:58.7]} 10... Kc7 {[%clk 0:02:38.3]} 11. Nd2
{[%clk 0:02:48.8]} 11... c3 {[%clk 0:02:37.7]} 12. bxc3 {[%clk 0:02:47.5]} 12...
Bxc3 {[%clk 0:02:38.6]} 13. Rb1 {[%clk 0:02:47.4]} 13... Nf6 {[%clk 0:02:34.1]}
14. Nc4 {[%clk 0:02:42.9]} 14... Nd5 {[%clk 0:02:06.5]} 15. e4 {[%clk
0:02:37.7]} 15... Nb6 {[%clk 0:02:01.9]} 16. Bf4+ {[%clk 0:02:22]} 16... Kd7
{[%clk 0:02:01.4]} 17. Rxb6 {[%clk 0:02:19.4]} 17... axb6 {[%clk 0:01:57.8]} 18.
Nxb6+ {[%clk 0:02:19.1]} 18... Ke7 {[%clk 0:01:54.8]} 19. Nxa8 {[%clk 0:02:20]}
19... Be6 {[%clk 0:01:51]} 20. Nb6 {[%clk 0:02:12.7]} 20... Bxa2 {[%clk
0:01:50.4]} 21. Rd1 {[%clk 0:02:02.4]} 21... Be6 {[%clk 0:01:46]} 22. Bd6+
{[%clk 0:01:58]} 22... Kf6 {[%clk 0:01:45.6]} 23. f4 {[%clk 0:01:49.5]} 23... g6
{[%clk 0:01:40.2]} 24. f5 {[%clk 0:01:21.7]} 24... Ba2 {[%clk 0:01:30.5]} 25.
e5+ {[%clk 0:01:13.5]} 25... Kg5 {[%clk 0:01:17.5]} 26. Be7+ {[%clk 0:00:42.7]}
26... Kf4 {[%clk 0:01:12.1]} 27. Bf6 {[%clk 0:00:38.6]} 27... Re8 {[%clk
0:01:06.6]} 28. Nd7 {[%clk 0:00:31.2]} 28... Bc4 {[%clk 0:00:53.2]} 29. e6
{[%clk 0:00:22.6]} 29... Bxf6 {[%clk 0:00:45.3]} 30. Nxf6 {[%clk 0:00:20.7]}
30... Re7 {[%clk 0:00:45.2]} 31. Rd7 {[%clk 0:00:19.4]} 31... Rxe6 {[%clk
0:00:37.2]} 32. fxe6 {[%clk 0:00:19]} 32... Bxe6 {[%clk 0:00:38.1]} 33. Rxb7
{[%clk 0:00:19]} 33... c5 {[%clk 0:00:38.7]} 34. Nxh7 {[%clk 0:00:18.9]} 34...
c4 {[%clk 0:00:38.5]} 35. Rc7 {[%clk 0:00:19.2]} 35... Ke5 {[%clk 0:00:37.7]}
36. Nf8 {[%clk 0:00:19.2]} 36... Kd6 {[%clk 0:00:36.7]} 37. Nxe6 {[%clk
0:00:19.1]} 1-0

[Event "*** Titled Tuesday Blitz"]
[Site "Chess.com"]
[Date "2020.12.01"]
[Round "10"]
[White "anpospan"]
[Black "bratkoo"]
[Result "1/2-1/2"]
[WhiteElo "2418"]
[BlackElo "2526"]
[TimeControl "180+1"]
[EndTime "11:54:19 PST"]
[Termination "Game drawn by repetition"]

1. d4 {[%clk 0:03:00.9]} 1... e6 {[%clk 0:02:48.4]} 2. c4 {[%clk 0:03:00.9]}
2... d5 {[%clk 0:02:46.2]} 3. Nc3 {[%clk 0:03:00.6]} 3... c6 {[%clk 0:02:46.3]}
4. Nf3 {[%clk 0:03:00.2]} 4... dxc4 {[%clk 0:02:46.1]} 5. a4 {[%clk 0:03:00.2]}
5... Bb4 {[%clk 0:02:45.2]} 6. Bd2 {[%clk 0:02:58.3]} 6... Nf6 {[%clk
0:02:44.3]} 7. e3 {[%clk 0:02:57.3]} 7... b5 {[%clk 0:02:43.9]} 8. axb5 {[%clk
0:02:56.6]} 8... Bxc3 {[%clk 0:02:44.1]} 9. Bxc3 {[%clk 0:02:52.6]} 9... cxb5
{[%clk 0:02:44.5]} 10. Qc2 {[%clk 0:02:42.3]} 10... O-O {[%clk 0:02:42.1]} 11.
b3 {[%clk 0:02:37.6]} 11... cxb3 {[%clk 0:02:40.1]} 12. Qxb3 {[%clk 0:02:37.3]}
12... Bb7 {[%clk 0:02:28]} 13. Qxb5 {[%clk 0:02:27]} 13... Qc7 {[%clk
0:02:16.4]} 14. Qb3 {[%clk 0:02:09.5]} 14... Bd5 {[%clk 0:02:13.2]} 15. Qb2
{[%clk 0:02:04.5]} 15... Nc6 {[%clk 0:02:11.9]} 16. Bd3 {[%clk 0:02:00]} 16...
Rfb8 {[%clk 0:02:11.2]} 17. Qd2 {[%clk 0:01:47.8]} 17... Ne4 {[%clk 0:02:00.1]}
18. Bxe4 {[%clk 0:01:46.9]} 18... Bxe4 {[%clk 0:02:01]} 19. O-O {[%clk
0:01:45.9]} 19... Rb3 {[%clk 0:02:00.7]} 20. Rfc1 {[%clk 0:01:45.1]} 20... Rab8
{[%clk 0:02:00.3]} 21. Ne5 {[%clk 0:01:38.6]} 21... Nxe5 {[%clk 0:01:59.8]} 22.
dxe5 {[%clk 0:01:37.4]} 22... h5 {[%clk 0:01:57]} 23. Bd4 {[%clk 0:01:31.9]}
23... Rb1 {[%clk 0:01:44.8]} 24. Raxb1 {[%clk 0:01:20]} 24... Rxb1 {[%clk
0:01:45.7]} 25. Rxb1 {[%clk 0:01:18.7]} 25... Bxb1 {[%clk 0:01:46.6]} 26. h4
{[%clk 0:00:59.4]} 26... a5 {[%clk 0:01:45.4]} 27. Qc3 {[%clk 0:00:51.8]} 27...
Qxc3 {[%clk 0:01:41.4]} 28. Bxc3 {[%clk 0:00:51.7]} 28... a4 {[%clk 0:01:41]}
29. Bb4 {[%clk 0:00:51.4]} 29... Bd3 {[%clk 0:01:41.3]} 30. f3 {[%clk
0:00:47.8]} 30... Kh7 {[%clk 0:01:42.2]} 31. e4 {[%clk 0:00:44.7]} 31... Kg6
{[%clk 0:01:43.1]} 32. Kf2 {[%clk 0:00:43.8]} 32... Kh6 {[%clk 0:01:36.2]} 33.
Ke3 {[%clk 0:00:40.5]} 33... Bb5 {[%clk 0:01:35.6]} 34. Kf4 {[%clk 0:00:36.5]}
34... f6 {[%clk 0:01:33.9]} 35. exf6 {[%clk 0:00:34.7]} 35... gxf6 {[%clk
0:01:34.2]} 36. e5 {[%clk 0:00:33.6]} 36... Kg6 {[%clk 0:01:31.6]} 37. exf6
{[%clk 0:00:30.3]} 37... Kxf6 {[%clk 0:01:32.5]} 38. Bc3+ {[%clk 0:00:28.4]}
38... Kg6 {[%clk 0:01:32]} 39. Bb2 {[%clk 0:00:23.4]} 39... Bf1 {[%clk
0:01:32.2]} 40. g3 {[%clk 0:00:23.3]} 40... Bg2 {[%clk 0:01:30.8]} 41. Ke5
{[%clk 0:00:21.3]} 41... Bxf3 {[%clk 0:01:30.2]} 42. Kxe6 {[%clk 0:00:21]} 42...
Bg4+ {[%clk 0:01:30.5]} 43. Ke5 {[%clk 0:00:20.8]} 43... Kf7 {[%clk 0:01:29.7]}
44. Kd4 {[%clk 0:00:18.6]} 44... Ke6 {[%clk 0:01:30.1]} 45. Kc3 {[%clk
0:00:17.4]} 45... Kf5 {[%clk 0:01:31]} 46. Bc1 {[%clk 0:00:17.3]} 46... Bd1
{[%clk 0:01:31.9]} 47. Bf4 {[%clk 0:00:16.5]} 47... Ke4 {[%clk 0:01:32.2]} 48.
Kb2 {[%clk 0:00:16.2]} 48... Bg4 {[%clk 0:01:31.7]} 49. Ka3 {[%clk 0:00:16.2]}
49... Bd7 {[%clk 0:01:32.3]} 50. Kb2 {[%clk 0:00:16.2]} 50... Kf3 {[%clk
0:01:33]} 51. Ka3 {[%clk 0:00:16.4]} 51... Ke2 {[%clk 0:01:33.1]} 52. Kb2 {[%clk
0:00:16.6]} 52... Kd3 {[%clk 0:01:34]} 53. Ka3 {[%clk 0:00:16.8]} 53... Kc4
{[%clk 0:01:34.4]} 54. Bg5 {[%clk 0:00:16.7]} 54... Kc3 {[%clk 0:01:34.5]} 55.
Bf4 {[%clk 0:00:16.8]} 55... Kc4 {[%clk 0:01:34.9]} 56. Bg5 {[%clk 0:00:17]}
56... Kd4 {[%clk 0:01:35.5]} 57. Bf4 {[%clk 0:00:17.1]} 57... Ke4 {[%clk
0:01:36.4]} 58. Kb2 {[%clk 0:00:17.2]} 58... Kf3 {[%clk 0:01:37.3]} 59. Ka3
{[%clk 0:00:17.3]} 59... Be6 {[%clk 0:01:37]} 60. Kb2 {[%clk 0:00:17.3]} 60...
Bd7 {[%clk 0:01:37]} 1/2-1/2

[Event "*** Titled Tuesday Blitz"]
[Site "Chess.com"]
[Date "2020.12.01"]
[Round "10"]
[White "rychessmaster1"]
[Black "plumalka"]
[Result "0-1"]
[WhiteElo "2562"]
[BlackElo "2504"]
[TimeControl "180+1"]
[EndTime "11:54:31 PST"]
[Termination "plumalka won by resignation"]

1. d4 {[%clk 0:03:00]} 1... Nf6 {[%clk 0:02:59.6]} 2. Nc3 {[%clk 0:03:00.8]}
2... g6 {[%clk 0:02:55.4]} 3. Bf4 {[%clk 0:03:01.2]} 3... Bg7 {[%clk 0:02:55]}
4. Qd2 {[%clk 0:03:01.8]} 4... d6 {[%clk 0:02:54]} 5. Bh6 {[%clk 0:03:01.7]}
5... O-O {[%clk 0:02:49.9]} 6. O-O-O {[%clk 0:02:59.2]} 6... Nbd7 {[%clk
0:02:48.5]} 7. f3 {[%clk 0:02:58]} 7... e5 {[%clk 0:02:48.4]} 8. d5 {[%clk
0:02:56.7]} 8... e4 {[%clk 0:02:41.8]} 9. fxe4 {[%clk 0:02:52.5]} 9... Qe7
{[%clk 0:02:38.2]} 10. Bxg7 {[%clk 0:02:46.8]} 10... Kxg7 {[%clk 0:02:39.1]} 11.
Qf4 {[%clk 0:02:38.7]} 11... Nc5 {[%clk 0:02:34.9]} 12. e5 {[%clk 0:02:17.7]}
12... Qxe5 {[%clk 0:02:28.3]} 13. Qxe5 {[%clk 0:02:17.9]} 13... dxe5 {[%clk
0:02:29.2]} 14. e3 {[%clk 0:02:14.1]} 14... Bf5 {[%clk 0:02:27.6]} 15. Be2
{[%clk 0:02:02.3]} 15... Rad8 {[%clk 0:02:15.3]} 16. h3 {[%clk 0:01:55.9]} 16...
Nfe4 {[%clk 0:02:09.7]} 17. Nxe4 {[%clk 0:01:52.3]} 17... Nxe4 {[%clk
0:02:10.6]} 18. g4 {[%clk 0:01:42]} 18... Nf2 {[%clk 0:01:56.3]} 19. gxf5 {[%clk
0:01:21.6]} 19... Nxh1 {[%clk 0:01:55.8]} 20. fxg6 {[%clk 0:00:55.1]} 20... hxg6
{[%clk 0:01:50.2]} 21. Bf3 {[%clk 0:00:47.9]} 21... Ng3 {[%clk 0:01:48.4]} 22.
e4 {[%clk 0:00:47.8]} 22... f5 {[%clk 0:01:45.9]} 23. exf5 {[%clk 0:00:47.9]}
23... gxf5 {[%clk 0:01:46.8]} 24. c4 {[%clk 0:00:45]} 24... e4 {[%clk
0:01:46.3]} 25. Bg2 {[%clk 0:00:45.1]} 25... f4 {[%clk 0:01:43.8]} 26. Kd2
{[%clk 0:00:22.7]} 26... f3 {[%clk 0:01:41.1]} 27. Bf1 {[%clk 0:00:23.5]} 27...
Nf5 {[%clk 0:01:25.5]} 28. Kc3 {[%clk 0:00:13.5]} 28... Rde8 {[%clk 0:01:18.2]}
29. c5 {[%clk 0:00:09.6]} 29... Ne3 {[%clk 0:01:16.8]} 30. Rc1 {[%clk
0:00:07.9]} 30... Nxf1 {[%clk 0:01:01.2]} 31. Rxf1 {[%clk 0:00:08.8]} 31... e3
{[%clk 0:01:01.6]} 32. Nxf3 {[%clk 0:00:01.9]} 32... Rxf3 {[%clk 0:00:56.7]} 33.
Rxf3 {[%clk 0:00:02.6]} 33... e2 {[%clk 0:00:57]} 34. Rg3+ {[%clk 0:00:03.5]}
34... Kf6 {[%clk 0:00:54]} 35. Rg1 {[%clk 0:00:04.4]} 35... e1=Q+ {[%clk
0:00:54.2]} 36. Rxe1 {[%clk 0:00:05.3]} 36... Rxe1 {[%clk 0:00:54.4]} 37. h4
{[%clk 0:00:06]} 37... Rh1 {[%clk 0:00:53.6]} 0-1